bitfinex/quotes_ETHUSD_20250605
["timestamp","ask_amount","ask_price","bid_price","bid_amount"]
[1749127718605,6.856,2626.2,2626.1,16.0]
[1749127718970,6.856,2626.2,2625.9,3.80809409]
[1749127719168,6.856,2626.2,2626.0,16.0]
[1749127719371,6.856,2626.2,2625.8,19.80828756]
[1749127720675,1.1842,2626.5,2626.0,0.1528]
[1749127720909,6.306,2626.4,2626.3,16.0]
[1749127721284,1.1842,2626.7,2626.5,16.0]
[1749127721612,6.306,2626.6,2626.2,16.0]
[1749127721827,6.306,2626.6,2626.3,3.80761872]
[1749127722175,4.95874624,2626.9,2626.5,16.0]
[1749127722513,0.55,2626.7,2626.4,16.0]
[1749127722808,3.80706042,2626.7,2626.2,19.80770228]
[1749127723010,6.306,2626.6,2626.2,19.80770228]
[1749127723179,6.306,2626.6,2626.3,16.0]
[1749127723789,6.306,2626.6,2626.1,19.80784405]
[1749127724111,6.306,2626.6,2626.2,3.80763829]
[1749127724713,3.80709277,2626.7,2626.2,3.80763829]
[1749127724919,6.305,2626.6,2626.1,3.80786487]
[1749127725115,10.11230171,2626.6,2626.1,3.80786487]
[1749127725451,10.11230171,2626.6,2626.2,16.0]
[1749127725799,10.11230171,2626.6,2626.2,3.80777893]
[1749127726316,10.11230171,2626.6,2626.1,19.80789237]
[1749127726515,1.2169,2626.5,2626.1,19.80789237]
[1749127726721,4.35756988,2626.4,2626.0,3.80806289]
[1749127726922,6.305,2626.3,2626.1,16.0]
[1749127727113,6.305,2626.3,2625.9,21.47419247]
[1749127727314,6.305,2626.3,2626.0,3.80807311]
[1749127727526,6.305,2626.3,2626.2,19.8077831]
[1749127727728,6.855,2626.3,2626.2,16.0]
[1749127727926,10.66263812,2626.3,2626.2,16.0]
[1749127728100,6.855,2626.3,2626.2,16.0]
[1749127729200,10.66263812,2626.3,2626.2,16.0]
[1749127729715,6.855,2626.3,2626.2,16.0]
[1749127731799,6.305,2626.3,2626.2,19.80768267]
[1749127732428,6.305,2626.3,2626.2,16.0]
[1749127733036,6.305,2626.3,2626.2,19.8077831]
[1749127734041,6.305,2626.3,2626.2,16.0]
[1749127734803,6.305,2626.3,2626.2,19.8077831]
[1749127735339,5.02294157,2626.7,2626.3,3.80758599]
[1749127735498,6.854,2626.6,2626.3,19.80758599]
[1749127735701,6.854,2626.6,2626.2,3.80770547]
[1749127735901,6.854,2626.6,2626.2,19.80770547]
[1749127736204,0.55,2626.6,2626.3,3.80763526]
[1749127736404,6.304,2626.5,2626.3,3.80752753]
[1749127737601,1.2158,2626.7,2626.5,16.0]
[1749127737802,6.304,2626.6,2626.5,16.0]
[1749127738001,6.304,2626.6,2626.4,16.0]
[1749127738735,6.304,2626.6,2626.4,3.8074347]
[1749127739438,6.304,2626.6,2626.3,3.80755648]
[1749127739630,6.304,2626.6,2626.2,3.96051547]
[1749127739631,6.304,2626.6,2626.4,3.80748074]
[1749127739832,6.304,2626.6,2626.3,3.80757828]
[1749127740453,6.304,2626.5,2626.4,3.80739923]
[1749127741544,0.55,2626.8,2626.5,3.80721353]
[1749127741768,1.2194,2626.9,2626.7,3.80705828]
[1749127741978,6.303,2626.8,2626.7,3.64485413]
[1749127742270,1.1614,2627.3,2626.7,4.01971245]
[1749127742424,1.1614,2627.3,2627.0,3.80655736]
[1749127742620,6.303,2627.2,2627.0,3.80655736]
[1749127742823,6.303,2627.2,2626.9,3.80669211]
[1749127743363,6.303,2627.1,2626.9,3.80669211]
[1749127743540,1.1614,2627.3,2626.9,3.80669211]
[1749127743739,6.303,2627.0,2626.9,3.80669211]
[1749127743944,6.303,2627.0,2626.8,16.0]
[1749127744262,6.303,2627.0,2626.8,19.80683666]
[1749127744855,6.303,2627.0,2626.9,3.80676843]
[1749127745751,0.55,2627.4,2627.1,16.0]
[1749127745958,0.55,2627.4,2627.2,3.8063163]
[1749127746268,6.302,2627.4,2627.0,17.8178]
[1749127746435,1.2255,2627.7,2627.3,3.80618886]
[1749127746764,0.55,2627.6,2627.4,3.80597835]
[1749127746929,0.55,2627.6,2627.4,16.0]
[1749127746930,6.302,2627.5,2627.4,16.0]
[1749127747134,6.852,2627.5,2627.4,16.0]
[1749127747370,1.2255,2627.5,2627.4,16.0]
[1749127747585,6.302,2627.5,2627.4,3.80604399]
[1749127747784,0.02,2627.9,2627.6,3.80567105]
[1749127748077,6.302,2627.8,2627.5,3.80582214]
[1749127748575,6.302,2627.8,2627.4,3.80601905]
[1749127748931,6.302,2627.8,2627.6,3.80571577]
[1749127749185,6.302,2627.8,2627.4,0.1528]
[1749127749333,6.302,2627.7,2627.6,3.8057543]
[1749127749645,0.57,2627.9,2627.8,3.80546464]
[1749127749847,6.872,2627.9,2627.8,3.80546464]
[1749127750654,0.02,2627.9,2627.8,3.80546464]
[1749127750855,0.02,2627.9,2627.8,19.91626464]
[1749127754334,1.1773,2629.1,2628.8,3.80401704]
[1749127754641,7.5018,2629.4,2628.8,21.46801704]
[1749127755540,7.13984529,2629.3,2628.8,21.46801704]
[1749127756090,0.83984529,2629.3,2628.8,21.46801704]
[1749127756377,0.02,2629.9,2629.8,3.80257053]
[1749127756536,0.02,2630.9,2630.8,19.91192513]
[1749127756768,5.70200138,2632.2,2630.9,19.91178065]
[1749127756979,1.90285285,2632.2,2631.8,3.79968082]
[1749127757301,4.15607424,2634.4,2632.2,3.79898218]
[1749127757579,0.51568116,2634.6,2633.6,6.88842732]
[1749127757580,2.284,2634.0,2633.6,6.88842732]
[1749127757734,0.51568116,2634.6,2633.8,16.0]
[1749127757934,0.46568116,2634.6,2634.4,6.88842732]
[1749127758136,0.02,2634.9,2633.9,8.198]
[1749127758137,0.02,2634.9,2633.9,1.01661735]
[1749127758373,0.02,2634.9,2634.8,3.79535448]
[1749127758543,0.02,2634.9,2634.8,7.13639548]
[1749127758875,0.02,2634.9,2634.8,6.27652048]
[1749127759082,0.02,2634.9,2634.8,3.79535448]
[1749127759292,0.02,2634.9,2634.8,13.3539498]
[1749127759585,0.02,2634.9,2634.8,12.32445733]
[1749127760290,0.006495,2635.4,2635.0,3.79506641]
[1749127760439,1.1059,2637.6,2636.8,3.24247572]
[1749127760681,1.1059,2637.6,2635.4,0.1108]
[1749127760882,1.1059,2637.6,2635.8,16.0]
[1749127760883,3.79165295,2637.4,2635.8,16.0]
[1749127761227,3.79165295,2637.4,2635.2,3.79464509]
[1749127761228,3.79308217,2636.4,2635.4,16.0]
[1749127761432,1.1354,2636.8,2635.5,5.85893485]
[1749127761593,3.79261956,2636.7,2635.7,5.85893485]
[1749127761796,16.0,2636.5,2634.9,16.66604687]
[1749127761996,16.0,2636.5,2635.2,16.0]
[1749127762308,1.1197,2636.8,2635.1,16.0]
[1749127762518,1.1197,2636.8,2636.6,16.0]
[1749127762829,0.02,2636.9,2636.8,24.607018]
[1749127763211,0.02,2636.9,2636.8,18.507529]
[1749127763394,0.02,2636.9,2636.8,22.30000472]
[1749127763735,6.048e-05,2637.9,2637.4,16.0]
[1749127764042,6.048e-05,2637.9,2636.8,5.85893485]
[1749127764212,3.79143101,2637.6,2636.8,16.0]
[1749127764373,3.79143101,2637.6,2636.4,9.76276372]
[1749127764374,3.79187016,2637.3,2636.5,16.0]
[1749127764574,3.79103798,2637.8,2636.5,16.0]
[1749127764774,6.048e-05,2637.9,2636.2,1.02080607]
[1749127765009,3.79223448,2637.0,2636.0,2.025448]
[1749127765280,3.79206894,2637.1,2636.0,28.204657]
[1749127765514,1.1707,2636.4,2634.3,0.1108]
[1749127765710,9.0957,2636.4,2634.4,0.31687769]
[1749127765892,9.0957,2636.4,2635.2,14.886452]
[1749127766095,1.1707,2636.4,2635.4,10.0]
[1749127766275,5.85893485,2636.2,2635.5,0.31674544]
[1749127766478,3.79420245,2635.6,2635.5,0.31674544]
[1749127766906,4.97340245,2635.6,2635.1,0.02]
[1749127767120,3.79477838,2635.2,2635.1,0.02]
[1749127768189,1.1792,2635.6,2635.1,0.02]
[1749127768391,3.79477838,2635.2,2635.1,0.02]
[1749127768590,3.79461571,2635.4,2635.1,0.02]
[1749127768819,1.1792,2635.6,2635.1,0.02]
[1749127769189,3.79465972,2635.3,2635.1,0.02]
[1749127769392,3.79477838,2635.2,2635.1,0.02]
[1749127770003,3.79436139,2635.5,2635.1,0.02]
[1749127770178,3.79475596,2635.3,2635.1,0.02]
[1749127770381,3.79477838,2635.2,2635.1,0.02]
[1749127771725,1.1792,2635.6,2635.1,0.02]
[1749127772320,3.79469977,2635.3,2635.1,0.02]
[1749127772642,9.65371323,2635.2,2635.1,0.02]
[1749127772925,0.55,2635.2,2635.1,0.02]
[1749127773081,1.1792,2635.6,2635.1,0.02]
[1749127773283,3.79443912,2635.5,2635.1,0.02]
[1749127773489,3.7944523,2635.5,2635.1,16.02]
[1749127773799,3.79463438,2635.3,2635.1,0.02]
[1749127773996,4.34451951,2635.4,2635.1,0.02]
[1749127774294,4.34453088,2635.4,2635.1,0.02]
[1749127774498,5.85893485,2636.0,2635.1,0.02]
[1749127774696,0.55,2635.5,2635.1,0.02]
[1749127775081,0.55,2635.3,2635.1,0.02]
[1749127775425,3.79435317,2635.5,2635.1,0.02]
[1749127775640,3.7944493,2635.5,2635.1,0.02]
[1749127775791,7.986,2635.5,2635.1,0.02]
[1749127776120,7.985,2635.6,2635.3,16.0]
[1749127776326,1.1216,2636.5,2635.1,0.02]
[1749127776687,3.79349392,2636.1,2635.5,19.79424199]
[1749127776886,7.979,2636.0,2635.5,19.79424199]
[1749127777082,11.77265844,2636.0,2635.4,3.79444912]
[1749127777291,7.979,2636.0,2635.1,0.02]
[1749127777537,7.979,2636.0,2635.3,3.79454054]
[1749127777836,3.79346894,2636.2,2635.6,16.0]
[1749127778126,0.55,2635.7,2635.1,0.02]
[1749127778421,7.967,2635.8,2634.7,18.4475]
[1749127778594,3.79406299,2635.7,2635.1,3.79483703]
[1749127778795,3.79387162,2635.9,2635.3,3.7945934]
[1749127778999,7.956,2635.8,2635.3,3.79453487]
[1749127779418,0.55,2635.5,2634.2,10.694022]
[1749127779745,7.955,2635.4,2634.2,4.345525]
[1749127779937,3.79472538,2635.3,2634.7,3.79541502]
[1749127780244,0.55,2635.7,2634.4,10.0]
[1749127780417,7.952,2635.9,2634.8,16.0]
[1749127780618,3.79335569,2636.2,2635.6,3.79416592]
[1749127780848,1.1216,2636.5,2635.4,16.282039]
[1749127781148,3.7935123,2636.1,2635.5,3.79426555]
[1749127781347,3.79330656,2636.3,2635.7,3.79394047]
[1749127781643,7.94,2636.6,2636.1,3.79334897]
[1749127781846,0.02,2636.9,2636.4,3.79296265]
[1749127782007,0.02,2636.9,2636.2,19.79333362]
[1749127782347,0.02,2636.9,2636.3,12.610166]
[1749127782509,0.02,2636.9,2635.4,3.79440219]
[1749127782853,7.932,2636.8,2635.7,4.943511]
[1749127783024,3.79307224,2636.4,2635.7,3.79395492]
[1749127783218,0.55,2636.7,2636.1,3.79347287]
[1749127783423,0.55,2636.7,2635.9,16.0]
[1749127783424,7.932,2636.8,2635.9,16.0]
[1749127783619,3.79302811,2636.5,2635.9,16.0]
[1749127783835,3.79287369,2636.6,2636.0,3.79362382]
[1749127784146,0.02,2636.9,2635.9,16.0]
[1749127784343,0.02,2636.9,2636.3,3.79311513]
[1749127784508,7.937,2636.9,2636.1,10.0]
[1749127784703,7.937,2636.9,2636.2,3.79327732]
[1749127784946,0.55,2636.8,2635.6,16.0]
[1749127785108,0.55,2636.8,2636.1,16.0]
[1749127785109,1.119,2636.7,2636.1,16.0]
[1749127785305,7.912,2636.6,2636.5,3.79290726]
[1749127785509,0.02,2636.9,2636.2,3.79333889]
[1749127785706,0.02,2636.9,2636.8,3.79247572]
[1749127786122,0.02,2636.9,2636.7,16.0]
[1749127786446,0.35187201,2636.8,2636.3,16.0]
[1749127786647,3.79277605,2636.6,2636.1,16.0]
[1749127786820,0.35978836,2636.5,2635.7,2.709]
[1749127787030,0.35192412,2636.4,2636.1,3.79336072]
[1749127787234,0.35192023,2636.3,2636.0,16.0]
[1749127787469,0.70390307,2636.2,2636.1,3.79340063]
[1749127787627,0.70390315,2636.2,2636.1,3.79340063]
[1749127787825,7.893,2636.5,2636.3,16.0]
[1749127788121,0.35197272,2636.4,2635.4,18.709]
[1749127788345,7.893,2636.5,2635.8,3.79386273]
[1749127788659,0.71231065,2636.4,2635.9,16.0]
[1749127788959,1.0643546,2636.3,2635.7,3.79405553]
[1749127789143,1.0643546,2636.3,2635.8,3.79386842]
[1749127789144,1.0643546,2636.2,2635.8,3.79386842]
[1749127789345,0.71233285,2636.1,2635.8,3.79386842]
[1749127789526,0.35204797,2636.0,2635.6,3.79410799]
[1749127789730,0.35210243,2635.9,2635.4,10.0]
[1749127789924,7.864,2635.8,2635.7,3.7940585]
[1749127790257,7.865,2636.3,2635.8,16.0]
[1749127790464,0.36034145,2636.2,2635.8,3.79382093]
[1749127790622,0.36034145,2636.1,2635.8,16.0]
[1749127790820,7.864,2636.0,2635.6,16.0]
[1749127791030,7.864,2636.0,2635.9,3.79377062]
[1749127791657,7.864,2636.0,2635.8,3.79379003]
[1749127791821,7.859,2636.7,2635.6,10.0]
[1749127792016,0.3604279,2636.6,2636.0,16.0]
[1749127792221,0.3604279,2636.5,2635.9,16.0]
[1749127792451,0.360474,2636.4,2635.2,3.7947559]
[1749127792622,0.55,2636.4,2636.0,3.79362597]
[1749127792835,7.86,2636.3,2635.0,3.7949988]
[1749127793019,7.86,2636.3,2635.0,25.044828]
[1749127793020,4.15389498,2636.2,2635.0,25.044828]
[1749127793220,6.40893485,2636.1,2635.2,3.79476087]
[1749127793420,10.20246494,2636.1,2634.9,18.51202772]
[1749127793647,3.79372827,2636.0,2635.4,3.79434798]
[1749127793922,7.85,2635.9,2635.7,3.79404694]
[1749127794121,7.85,2635.9,2635.5,3.79427196]
[1749127794324,7.85,2635.9,2635.6,3.79412233]
[1749127794548,7.85,2635.9,2635.6,16.0]
[1749127794744,8.9201,2635.9,2635.0,16.0]
[1749127794951,8.9201,2635.9,2635.5,3.79420773]
[1749127795184,0.36105049,2635.8,2635.3,3.79461732]
[1749127795351,0.36105049,2635.8,2635.1,3.7948589]
[1749127795352,6.21998534,2635.7,2634.2,40.0]
[1749127795551,5.85893485,2635.4,2634.3,10.31688972]
[1749127795849,9.65311488,2635.7,2635.1,3.79484296]
[1749127796077,8.18921032,2635.6,2635.1,3.79488759]
[1749127796382,0.36121032,2635.5,2634.9,10.0]
[1749127796563,11.62220781,2635.6,2635.1,3.79480165]
[1749127796757,0.36120367,2635.5,2634.9,3.79521044]
[1749127796958,5.85893485,2635.7,2635.3,3.79454334]
[1749127796959,7.819,2635.4,2635.3,3.79454334]
[1749127797174,7.819,2635.4,2634.9,3.79521044]
[1749127797175,6.92903485,2635.9,2635.7,3.79394997]
[1749127797387,0.4378502,2636.3,2635.9,3.79375831]
[1749127797682,7.818,2635.8,2635.0,10.0]
[1749127797993,5.85893485,2635.7,2635.2,3.79477838]
[1749127798216,1.0754,2635.6,2635.1,3.79490865]
[1749127798487,1.0754,2635.6,2634.8,16.0]
[1749127798660,1.0754,2635.6,2635.2,3.79470684]
[1749127798862,3.79486763,2635.2,2634.6,3.79555463]
[1749127799077,3.79513593,2635.0,2634.4,3.79579082]
[1749127799251,13.66293485,2634.9,2633.9,3.7965996]
[1749127799448,5.85893485,2634.6,2634.1,3.81633913]
[1749127799788,7.816,2634.5,2634.4,3.79593076]
[1749127800150,0.4378502,2635.3,2635.0,3.79501285]
[1749127800348,11.9682366,2635.2,2634.5,3.79578667]
[1749127800565,11.9682366,2635.2,2634.3,3.79607485]
[1749127800566,0.36145003,2635.1,2634.3,3.79607485]
[1749127800792,5.85893485,2635.0,2634.1,0.02]
[1749127800997,5.32498029,2634.9,2634.2,3.79621896]
[1749127801148,5.32498029,2634.9,2634.1,0.02]
[1749127801149,14.03639195,2634.8,2634.1,3.81634567]
[1749127801481,1.1682,2634.9,2634.6,3.79556059]
[1749127801651,0.55,2635.3,2634.8,3.79528402]
[1749127801856,0.36144575,2635.2,2634.4,3.79593076]
[1749127802059,5.85893485,2635.4,2634.9,3.79514563]
[1749127802060,7.809,2635.1,2634.9,3.79514563]
[1749127802263,5.85893485,2635.0,2634.1,0.02]
[1749127802485,5.85893485,2634.6,2634.1,0.02]
[1749127802705,5.85893485,2634.2,2634.1,0.02]
[1749127802906,5.85893485,2634.2,2632.3,1.138643]
[1749127802907,0.55,2634.1,2632.3,1.138643]
[1749127803079,5.85893485,2633.3,2631.9,10.0]
[1749127803290,11.60266064,2633.2,2632.6,3.79844649]
[1749127803463,7.805,2633.2,2632.2,3.7990642]
[1749127803664,7.805,2633.2,2632.6,3.79847424]
[1749127804113,7.805,2633.2,2632.8,3.79820846]
[1749127804290,1.0542,2633.4,2633.3,3.79751642]
[1749127804604,1.1218,2633.8,2633.5,3.79713556]
[1749127804815,5.85893485,2633.6,2633.1,0.02]
[1749127804967,7.803,2633.7,2633.5,3.79710228]
[1749127805167,1.0547,2634.7,2633.5,3.79722802]
[1749127805393,8.11458353,2634.6,2633.6,3.79705016]
[1749127805591,0.31758353,2634.5,2634.2,3.79620449]
[1749127805906,0.31758353,2634.5,2633.7,3.79693966]
[1749127805907,5.85893485,2634.3,2633.7,3.79693966]
[1749127806075,5.85893485,2634.3,2633.6,16.0]
[1749127806076,5.85893485,2634.3,2634.1,3.79634547]
[1749127806275,0.31758353,2634.5,2634.2,3.79614336]
[1749127806476,7.832,2634.4,2633.8,3.7967955]
[1749127806690,7.832,2634.4,2634.2,3.79620547]
[1749127806889,7.832,2634.4,2633.9,16.0]
[1749127807097,7.832,2634.4,2633.9,19.79664246]
[1749127807264,0.31758353,2634.5,2633.5,16.0]
[1749127807464,7.824,2634.4,2633.5,16.0]
[1749127807703,5.85893485,2634.2,2633.8,3.79677607]
[1749127807905,5.85893485,2634.2,2633.1,0.02]
[1749127808093,5.85893485,2634.2,2633.3,3.79747751]
[1749127808407,7.821,2634.1,2634.0,3.79640464]
[1749127808611,6.98043485,2633.8,2633.4,3.79725936]
[1749127808913,11.61743709,2634.1,2633.6,3.79704005]
[1749127809212,11.61745979,2634.1,2633.5,3.79715418]
[1749127809368,10.77861679,2634.2,2633.2,16.0]
[1749127809573,7.818,2634.0,2633.6,3.79695857]
[1749127809903,7.818,2634.0,2633.6,3.79700241]
[1749127810105,7.818,2634.0,2633.4,3.79731758]
[1749127810280,9.65446633,2634.7,2633.6,7.59416766]
[1749127810482,3.79522916,2634.9,2634.2,3.79614301]
[1749127810483,8.9629,2634.6,2634.2,3.79614301]
[1749127810794,8.9629,2634.6,2633.8,0.1338]
[1749127810795,7.803,2634.5,2633.8,0.1338]
[1749127811006,3.79536775,2634.8,2633.9,3.339]
[1749127811197,7.812,2634.7,2634.3,3.79599866]
[1749127811512,3.79536775,2634.8,2634.3,3.79599866]
[1749127811666,7.812,2634.7,2633.9,3.79654331]
[1749127812010,5.85893485,2634.0,2633.3,16.0]
[1749127812306,7.806,2633.9,2633.6,16.0]
[1749127812507,11.60268258,2633.9,2633.1,3.81776894]
[1749127812692,11.60268913,2633.9,2633.3,3.79743345]
[1749127812866,1.2468,2634.2,2633.2,16.0]
[1749127813069,7.801,2634.1,2633.8,3.79671742]
[1749127813505,1.2468,2634.2,2633.9,3.79660397]
[1749127813805,7.798,2634.0,2633.9,3.79660397]
[1749127814305,5.85893485,2634.4,2633.6,3.79706413]
[1749127814516,7.788,2634.0,2633.9,3.79665135]
[1749127815170,5.85893485,2634.4,2634.0,3.79645302]
[1749127815367,1.2309,2634.6,2633.5,3.79721491]
[1749127815368,7.777,2634.3,2633.7,3.79693966]
[1749127815571,7.777,2634.3,2633.6,16.0]
[1749127815773,7.776,2634.2,2633.6,16.0]
[1749127816023,7.773,2634.1,2633.6,16.0]
[1749127816201,5.85893485,2633.9,2633.3,2.626]
[1749127816387,5.85893485,2633.9,2633.5,3.79717816]
[1749127816586,7.773,2634.1,2633.4,16.0]
[1749127816787,7.01613485,2633.9,2633.2,2.626]
[1749127817041,1.1572,2633.9,2633.3,26.0]
[1749127817189,1.1572,2633.9,2633.7,3.79681025]
[1749127817389,7.772,2634.0,2633.9,3.79665135]
[1749127818936,1.1572,2634.3,2633.5,19.79720798]
[1749127819096,1.1505,2634.6,2633.7,3.79691291]
[1749127819299,7.754,2634.2,2633.7,3.79691291]
[1749127819495,7.754,2634.2,2634.1,3.79636308]
[1749127819694,7.754,2634.2,2633.4,16.0]
[1749127819903,7.754,2634.2,2633.7,3.79682616]
[1749127820116,5.85893485,2633.9,2633.2,16.0]
[1749127820294,5.85893485,2633.9,2633.2,3.79766064]
[1749127820295,1.1698,2633.8,2633.2,3.79766064]
[1749127820598,7.743,2633.7,2633.4,3.79736363]
[1749127820839,7.743,2633.7,2633.1,2.627]
[1749127821016,7.743,2633.7,2633.2,3.79766039]
[1749127821338,7.732,2633.6,2633.0,3.79792729]
[1749127821539,7.732,2633.6,2632.9,1.94257295]
[1749127821739,7.731,2633.5,2633.0,16.0]
[1749127821926,7.731,2633.5,2633.3,3.79739782]
[1749127822332,7.731,2633.5,2633.3,3.79742984]
[1749127822533,7.731,2633.5,2633.4,3.79737221]
[1749127822732,7.731,2633.5,2633.3,3.79745058]
[1749127823129,7.731,2633.5,2632.9,1.94257295]
[1749127823348,7.731,2633.5,2633.3,3.79742845]
[1749127823530,1.1698,2633.8,2633.7,3.79693966]
[1749127823749,1.1698,2633.8,2633.2,3.79757512]
[1749127824070,7.72,2634.4,2633.8,3.79675016]
[1749127824353,7.72,2634.4,2633.5,19.79721446]
[1749127824566,7.72,2634.4,2633.7,16.0]
[1749127824859,1.2069,2634.3,2633.8,3.7967955]
[1749127825044,1.2069,2634.3,2633.9,3.79665135]
[1749127825240,0.53685,2634.2,2633.2,0.1338]
[1749127825439,3.79637514,2634.1,2633.6,3.79702038]
[1749127825617,3.7967955,2633.8,2633.2,3.7975557]
[1749127825834,1.242,2633.6,2633.0,16.0]
[1749127826038,1.242,2633.6,2633.4,3.79728022]
[1749127826237,7.7,2633.5,2633.4,3.79728022]
[1749127826433,7.7,2633.5,2633.0,16.0]
[1749127826632,7.7,2633.5,2633.1,19.79772036]
[1749127826837,7.7,2633.5,2633.1,3.79775846]
[1749127827072,7.7,2633.5,2633.2,3.79765017]
[1749127827248,1.242,2633.6,2633.5,3.79722802]
[1749127827451,0.55,2634.0,2633.6,3.79698534]
[1749127827674,7.691,2633.6,2633.2,10.0]
[1749127827977,7.691,2633.6,2633.5,3.79722802]
[1749127828492,7.691,2633.6,2633.4,3.79730491]
[1749127828493,8.908,2633.6,2633.4,3.79730491]
[1749127828695,0.55,2634.0,2633.9,3.79665135]
[1749127828893,0.02,2634.9,2634.8,3.79535448]
[1749127829065,0.02,2634.9,2634.3,16.1338]
[1749127829265,6.17651838,2634.8,2634.3,3.79599507]
[1749127829493,6.17651838,2634.8,2633.7,16.0]
[1749127829494,6.17651838,2634.8,2634.0,3.79650468]
[1749127829792,15.12331838,2634.7,2633.6,16.0]
[1749127829992,15.12331838,2634.7,2634.0,3.79647978]
[1749127829993,3.79571252,2634.6,2634.0,3.79647978]
[1749127830192,0.55,2634.5,2634.1,3.79633833]
[1749127830494,0.55,2634.5,2633.6,3.79706323]
[1749127830666,0.55,2634.5,2633.7,3.79693966]
[1749127830990,0.55,2634.5,2633.8,19.79677723]
[1749127831194,0.55,2634.5,2634.1,3.79631672]
[1749127831869,0.55,2634.5,2634.2,3.79620039]
[1749127832067,1.6886,2634.2,2633.8,16.0]
[1749127832380,1.6886,2634.2,2633.5,16.0]
[1749127832381,0.55,2634.0,2633.5,16.0]
[1749127832567,0.55,2634.1,2633.9,3.79654771]
[1749127832899,3.7955497,2634.7,2633.8,0.1338]
[1749127832900,7.705,2634.7,2633.8,0.1338]
[1749127833201,7.705,2634.7,2634.0,3.7964739]
[1749127833493,1.2121,2635.0,2634.3,3.79607485]
[1749127833694,7.698,2634.8,2634.1,16.0]
[1749127833996,7.698,2634.8,2634.0,13.9217]
[1749127833997,3.79557196,2634.7,2633.8,0.1338]
[1749127834167,11.49335546,2634.8,2634.4,16.0]
[1749127834376,0.55,2634.7,2633.8,0.1338]
[1749127834790,7.688,2634.6,2634.3,19.79599099]
[1749127834959,0.55,2634.5,2634.2,3.79619484]
[1749127835159,0.55,2634.5,2633.8,16.1338]
[1749127835160,7.688,2634.6,2633.8,16.1338]
[1749127835459,7.684,2634.5,2634.4,3.79582205]
[1749127836182,7.684,2634.5,2633.1,3.79776069]
[1749127836386,0.55,2634.4,2634.3,3.79607485]
[1749127836623,7.672,2634.4,2634.3,3.79607485]
[1749127836824,7.672,2634.4,2634.0,3.79643778]
[1749127837027,7.672,2634.4,2633.8,16.0]
[1749127837028,5.85893485,2634.2,2632.9,2.37022258]
[1749127837323,1.2184,2633.6,2633.1,3.79771416]
[1749127837482,7.67,2633.5,2633.2,3.79758399]
[1749127837687,0.55,2633.7,2633.4,3.79737221]
[1749127837883,7.666,2633.6,2633.1,3.79775836]
[1749127838089,7.666,2633.6,2632.9,17.94257295]
[1749127838289,7.666,2633.6,2633.4,3.79727579]
[1749127838623,7.658,2633.5,2633.4,3.79737221]
[1749127839013,7.658,2633.5,2632.9,17.94257295]
[1749127839214,7.658,2633.5,2632.9,1.94257295]
[1749127839414,0.55,2633.8,2633.2,16.0]
[1749127839603,7.649,2633.7,2633.5,3.7972163]
[1749127839789,7.649,2633.7,2633.3,3.79751642]
[1749127839993,0.4533535,2634.7,2634.0,3.79647811]
[1749127840321,7.642,2634.6,2634.1,3.79634779]
[1749127840485,11.4376631,2634.6,2634.0,3.79643541]
[1749127840691,7.642,2634.6,2634.1,3.79632164]
[1749127840912,11.4376615,2634.6,2634.1,3.79632164]
[1749127841113,7.642,2634.6,2633.6,3.79708383]
[1749127841313,7.654,2634.5,2633.9,3.79665135]
[1749127841490,7.653,2634.4,2634.2,3.79616211]
[1749127841692,7.653,2634.4,2633.7,3.79693966]
[1749127841886,0.55,2634.4,2634.1,3.79625873]
[1749127842087,7.647,2634.3,2634.2,3.79621896]
[1749127842425,7.647,2634.3,2634.0,3.79650208]
[1749127842626,4.34629527,2634.2,2633.8,16.0]
[1749127842827,0.55,2634.3,2633.4,16.0]
[1749127843127,4.93020238,2634.5,2634.0,3.79640949]
[1749127843303,0.55,2634.2,2633.8,3.79676506]
[1749127843503,0.55,2634.2,2633.9,3.79655119]
[1749127843504,7.631,2634.1,2633.9,3.79655119]
[1749127843803,2.544,2634.5,2633.3,6.66338858]
[1749127844018,1.1892,2634.8,2634.5,3.79572412]
[1749127844330,10.17,2634.7,2634.2,3.79611263]
[1749127844501,7.622,2634.6,2634.4,3.79583457]
[1749127844825,7.619,2634.5,2634.3,3.79597154]
[1749127845219,7.619,2634.5,2634.3,3.79604906]
[1749127845415,7.619,2634.5,2633.9,0.1376]
[1749127845616,0.55,2634.4,2633.7,3.79693966]
[1749127845910,7.619,2634.5,2633.9,3.796585]
[1749127845911,0.55,2634.5,2633.9,3.796585]
[1749127846111,4.34585334,2634.5,2634.0,3.79648315]
[1749127846291,7.606,2634.4,2634.0,3.79648315]
[1749127846495,7.606,2634.4,2633.9,3.7965766]
[1749127846689,7.606,2634.4,2633.8,3.79671964]
[1749127846690,0.55,2634.1,2633.8,3.79671964]
[1749127847033,0.55,2634.1,2633.8,3.7967627]
[1749127847190,1.1613,2634.2,2633.5,16.0]
[1749127847191,7.593,2634.0,2633.9,3.7965198]
[1749127847394,7.593,2634.0,2633.7,3.79690909]
[1749127847620,7.593,2634.0,2633.9,3.79665135]
[1749127847896,1.1613,2634.2,2634.0,3.79648207]
[1749127848091,1.1613,2634.2,2634.1,3.79636308]
[1749127848291,9.65448824,2634.7,2634.2,3.79621026]
[1749127848292,1.1828,2634.5,2634.2,3.79621026]
[1749127848637,10.679,2634.4,2634.2,3.79621026]
[1749127848843,10.679,2634.4,2634.0,3.79643838]
[1749127849347,7.575,2634.3,2633.8,3.7967955]
[1749127849497,7.572,2634.2,2634.1,3.79633645]